bitfinex/quotes_BTCUSD_20240727
["timestamp","ask_amount","ask_price","bid_price","bid_amount"]
[1722080366495,0.00028869,68309.0,68308.0,2.78103983]
[1722080366909,0.00028869,68309.0,68308.0,2.71663983]
[1722080367086,0.00028869,68309.0,68308.0,2.17978785]
[1722080367297,0.0232595,68309.0,68308.0,2.17978785]
[1722080367498,0.00028869,68309.0,68308.0,2.17978785]
[1722080368107,0.00028869,68309.0,68308.0,2.18063354]
[1722080368317,0.00028869,68309.0,68308.0,2.09548785]
[1722080368510,0.00028869,68309.0,68308.0,2.18123956]
[1722080368676,0.00028869,68309.0,68308.0,1.97386758]
[1722080368884,0.00028869,68309.0,68308.0,2.17979303]
[1722080370919,0.02326005,68309.0,68308.0,2.17979303]
[1722080371974,0.00028869,68309.0,68308.0,2.17979303]
[1722080372310,0.00028869,68309.0,68308.0,2.17979515]
[1722080375301,0.02326005,68309.0,68308.0,2.17979515]
[1722080375515,0.02326005,68309.0,68308.0,1.73339257]
[1722080375707,0.02326005,68309.0,68308.0,2.17979452]
[1722080376335,0.00028869,68309.0,68308.0,2.17979452]
[1722080378452,0.00028869,68309.0,68308.0,1.73339257]
[1722080378655,0.00028869,68309.0,68308.0,2.17979474]
[1722080379084,0.00028869,68309.0,68308.0,2.17979515]
[1722080379688,0.02326009,68309.0,68308.0,2.17979515]
[1722080379853,0.00028869,68309.0,68308.0,2.17979515]
[1722080382006,0.00028869,68309.0,68308.0,2.07979515]
[1722080382209,0.14588869,68309.0,68308.0,1.72361424]
[1722080382409,0.14588869,68309.0,68308.0,1.167342]
[1722080382810,0.14588869,68309.0,68308.0,0.874551]
[1722080382981,0.1688617,68309.0,68308.0,0.874551]
[1722080383844,0.14588869,68309.0,68308.0,0.846551]
[1722080384047,0.14588869,68309.0,68308.0,0.860551]
[1722080384195,0.14588869,68309.0,68308.0,0.874551]
[1722080386824,0.14588869,68309.0,68308.0,0.790251]
[1722080387049,0.16886225,68309.0,68308.0,0.58176]
[1722080387253,0.14588869,68309.0,68308.0,0.58176]
[1722080388776,0.14588869,68309.0,68308.0,0.058274]
[1722080388973,0.14588869,68309.0,68308.0,0.142574]
[1722080389178,0.14588869,68309.0,68308.0,0.288969]
[1722080389581,0.14588869,68309.0,68308.0,0.259619]
[1722080390227,0.16886284,68309.0,68308.0,0.259619]
[1722080391047,0.31525584,68309.0,68308.0,0.113224]
[1722080391191,0.16886284,68309.0,68308.0,0.113224]
[1722080391591,0.18106026,68309.0,68308.0,0.113224]
[1722080391817,0.15808611,68309.0,68308.0,0.099224]
[1722080392014,0.15808611,68309.0,68308.0,0.109224]
[1722080392179,0.14588869,68309.0,68308.0,0.095224]
[1722080392378,0.14588869,68309.0,68308.0,0.107224]
[1722080392666,0.29228169,68309.0,68308.0,0.107224]
[1722080393044,0.29228169,68309.0,68308.0,0.022924]
[1722080393201,0.58506869,68309.0,68308.0,0.022924]
[1722080393406,0.60894001,68309.0,68308.0,0.022924]
[1722080394857,0.62025909,68309.0,68308.0,0.022924]
[1722080395032,0.61963452,68309.0,68308.0,0.022924]
[1722080395199,0.63183966,68309.0,68308.0,0.022924]
[1722080396370,0.68924242,68309.0,68308.0,0.022924]
[1722080396579,0.31621882,68309.0,68308.0,0.022924]
[1722080396763,0.30450656,68309.0,68308.0,0.022924]
[1722080397255,0.15811356,68309.0,68308.0,0.169319]
[1722080397496,0.15811356,68309.0,68308.0,0.022924]
[1722080397778,0.15811356,68309.0,68308.0,0.169319]
[1722080398004,0.15811356,68309.0,68308.0,0.46211]
[1722080398232,0.14588869,68309.0,68308.0,0.46211]
[1722080398910,0.06278869,68309.0,68308.0,0.46211]
[1722080399342,0.08576355,68309.0,68308.0,0.49146]
[1722080399686,0.06278869,68309.0,68308.0,0.49146]
[1722080400083,0.06278869,68309.0,68308.0,0.4930142]
[1722080400289,0.00028869,68309.0,68308.0,0.784251]
[1722080400503,0.00028869,68309.0,68308.0,0.862351]
[1722080400704,0.00028869,68309.0,68308.0,1.155142]
[1722080402304,0.00028869,68309.0,68308.0,1.220342]
[1722080402549,0.02326224,68309.0,68308.0,1.220342]
[1722080403533,0.02326224,68309.0,68308.0,1.513133]
[1722080404255,0.00028869,68309.0,68308.0,1.513133]
[1722080404715,0.00028869,68309.0,68308.0,1.66339257]
[1722080404944,0.00028869,68309.0,68308.0,1.68639257]
[1722080406085,0.00028869,68309.0,68308.0,2.02918357]
[1722080406249,0.00028869,68309.0,68308.0,2.40236589]
[1722080406885,0.00028869,68309.0,68308.0,2.40081169]
[1722080407449,0.01025,68319.0,68318.0,1.346716]
[1722080407618,0.01025,68319.0,68318.0,1.74327557]
[1722080408616,0.01025,68319.0,68318.0,1.79327557]
[1722080409299,0.01025,68319.0,68318.0,1.80527557]
[1722080409627,0.00825,68328.0,68327.0,1.317195]
[1722080409775,0.00825,68328.0,68327.0,1.74310457]
[1722080410149,0.00825,68328.0,68327.0,1.86469909]
[1722080410351,0.00825,68328.0,68327.0,1.74310457]
[1722080410575,0.00825,68328.0,68327.0,2.33581457]
[1722080411235,0.00825,68328.0,68327.0,2.33681457]
[1722080411710,0.00825,68328.0,68327.0,2.33581457]
[1722080411961,0.00825,68328.0,68327.0,2.34981457]
[1722080412873,0.00825,68328.0,68327.0,2.11381457]
[1722080413762,0.03121496,68328.0,68327.0,2.11381457]
[1722080414099,0.00825,68328.0,68327.0,2.11381457]
[1722080414503,0.00825,68328.0,68327.0,1.82110457]
[1722080415172,0.00825,68328.0,68327.0,1.8297765]
[1722080416918,0.00825,68328.0,68327.0,2.0797765]
[1722080417369,0.03121488,68328.0,68327.0,2.0797765]
[1722080417517,0.03121488,68328.0,68327.0,2.0900265]
[1722080417717,0.03121488,68328.0,68327.0,1.8400265]
[1722080418452,0.00825,68328.0,68327.0,1.8400265]
[1722080419759,0.00825,68328.0,68327.0,2.0900265]
[1722080420301,0.00825,68328.0,68327.0,1.8400265]
[1722080423953,0.00825,68328.0,68327.0,1.8297765]
[1722080425814,0.03121495,68328.0,68327.0,1.7797765]
[1722080425937,0.03121495,68328.0,68327.0,1.6112765]
[1722080425938,0.00825,68328.0,68327.0,1.6112765]
[1722080426140,0.00825,68328.0,68327.0,1.6955765]
[1722080426355,0.00825,68328.0,68327.0,1.2407665]
[1722080426558,0.00825,68328.0,68327.0,1.3250665]
[1722080427971,0.00825,68328.0,68327.0,0.79779693]
[1722080428179,0.00825,68328.0,68327.0,0.88209693]
[1722080429189,0.03121616,68328.0,68327.0,0.88209693]
[1722080432154,0.03121616,68328.0,68327.0,0.873425]
[1722080432828,0.03121616,68328.0,68327.0,0.859425]
[1722080433176,0.03121616,68328.0,68327.0,0.873425]
[1722080433820,0.03121616,68328.0,68327.0,0.845425]
[1722080434219,0.03121616,68328.0,68327.0,0.859425]
[1722080434623,0.03121616,68328.0,68327.0,0.873425]
[1722080435462,0.03121616,68328.0,68327.0,1.166135]
[1722080435668,0.03121616,68328.0,68327.0,0.873425]
[1722080439110,0.00825,68328.0,68327.0,0.873425]
[1722080439928,0.15405,68328.0,68327.0,0.580715]
[1722080440431,0.07165,68328.0,68327.0,0.580715]
[1722080440645,0.07165,68328.0,68327.0,0.873425]
[1722080442411,0.09461684,68328.0,68327.0,0.873425]
[1722080444152,0.07165,68328.0,68327.0,0.873425]
[1722080444603,0.00825,68328.0,68327.0,0.873425]
[1722080447275,0.03121685,68328.0,68327.0,0.873425]
[1722080450065,0.00825,68328.0,68327.0,0.873425]
[1722080451860,0.00825,68328.0,68327.0,0.955825]
[1722080452985,0.00825,68328.0,68327.0,1.248535]
[1722080453188,0.03121648,68328.0,68327.0,1.308835]
[1722080453600,0.00825,68328.0,68327.0,1.308835]
[1722080456929,0.03121636,68328.0,68327.0,1.308835]
[1722080457156,0.00825,68328.0,68327.0,1.308835]
[1722080459257,0.00825,68328.0,68327.0,1.43044119]
[1722080460619,0.00825,68328.0,68327.0,1.43044022]
[1722080463137,0.00825,68328.0,68327.0,1.37014022]
[1722080463466,0.00825,68328.0,68327.0,1.248535]
[1722080464262,0.00825,68328.0,68327.0,1.37014081]
[1722080464502,0.03121619,68328.0,68327.0,1.37014081]
[1722080464703,0.03121619,68328.0,68327.0,1.248535]
[1722080464882,0.03121619,68328.0,68327.0,1.37013985]
[1722080465464,0.00825,68328.0,68327.0,1.37013985]
[1722080467233,0.00825,68328.0,68327.0,1.248535]
[1722080467412,0.00825,68328.0,68327.0,1.37013974]
[1722080468400,0.00825,68328.0,68327.0,1.66284974]
[1722080468758,0.00825,68328.0,68327.0,1.47747972]
[1722080468759,0.03121615,68328.0,68327.0,1.47747972]
[1722080469709,0.00825,68328.0,68327.0,1.47747972]
[1722080470392,0.00825,68328.0,68327.0,1.62773929]
[1722080470620,0.00825,68328.0,68327.0,1.65073929]
[1722080470853,0.00825,68328.0,68327.0,1.65075739]
[1722080471086,0.00825,68328.0,68327.0,1.94346739]
[1722080471551,0.00825,68328.0,68327.0,1.89960931]
[1722080472013,0.00825,68328.0,68327.0,1.60689931]
[1722080472300,0.00825,68328.0,68327.0,1.94347485]
[1722080472998,0.03121565,68328.0,68327.0,1.94347485]
[1722080473365,0.03121565,68328.0,68327.0,1.89960931]
[1722080473759,0.00825,68328.0,68327.0,1.89960931]
[1722080473983,0.00825,68328.0,68327.0,1.89960894]
[1722080474367,0.00825,68328.0,68327.0,1.94347539]
[1722080477092,0.03121565,68328.0,68327.0,1.94347539]
[1722080477330,0.00825,68328.0,68327.0,1.89960894]
[1722080477505,0.00825,68328.0,68327.0,1.94347366]
[1722080479305,0.00825,68328.0,68327.0,1.65076366]
[1722080479569,0.00825,68328.0,68327.0,1.46565929]
[1722080479963,0.00825,68328.0,68327.0,1.75836929]
[1722080480134,0.00825,68328.0,68327.0,1.46565929]
[1722080480338,0.00825,68328.0,68327.0,1.58726411]
[1722080480729,0.03121595,68328.0,68327.0,1.58726435]
[1722080480930,0.03121595,68328.0,68327.0,1.87997435]
[1722080481560,0.03121595,68328.0,68327.0,1.83610938]
[1722080481980,0.03121595,68328.0,68327.0,2.22661509]
[1722080482570,0.03121595,68328.0,68327.0,2.14231509]
[1722080482771,0.03121595,68328.0,68327.0,2.22661509]
[1722080483147,0.03121595,68328.0,68327.0,2.16081763]
[1722080483389,0.03121595,68328.0,68327.0,2.22661307]
[1722080484190,0.03121595,68328.0,68327.0,2.2266089]
[1722080484345,0.03121595,68328.0,68327.0,1.90190065]
[1722080484754,0.03121595,68328.0,68327.0,1.96370065]
[1722080484941,0.03121595,68328.0,68327.0,2.2884089]
[1722080485092,0.03121595,68328.0,68327.0,2.22261327]
[1722080485299,0.00825,68328.0,68327.0,2.33227265]
[1722080486137,0.00825,68328.0,68327.0,2.22261327]
[1722080486337,0.00825,68328.0,68327.0,2.31032695]
[1722080487272,0.00825,68328.0,68327.0,2.22261327]
[1722080487472,0.00825,68328.0,68327.0,1.8979034]
[1722080487615,0.00825,68328.0,68327.0,2.2226073]
[1722080489043,0.03121574,68328.0,68327.0,2.2226073]
[1722080490245,0.00825,68328.0,68327.0,1.8455973]
[1722080490453,0.00825,68328.0,68327.0,1.60917865]
[1722080490894,0.00825,68328.0,68327.0,1.90188989]
[1722080491098,0.00825,68328.0,68327.0,1.8799643]
[1722080491308,0.00825,68328.0,68327.0,1.8361044]
[1722080491694,0.00825,68328.0,68327.0,1.42179457]
[1722080491891,0.00825,68328.0,68327.0,1.54340176]
[1722080492073,0.00825,68328.0,68327.0,1.42179457]
[1722080492843,0.00825,68328.0,68327.0,1.081835]
[1722080493061,0.07175,68328.0,68327.0,1.166135]
[1722080493642,0.09471616,68328.0,68327.0,1.166135]
[1722080493848,0.07175,68328.0,68327.0,1.166135]
[1722080497362,0.09471619,68328.0,68327.0,1.166135]
[1722080498291,0.07175,68328.0,68327.0,1.166135]
[1722080501711,0.09471622,68328.0,68327.0,1.166135]
[1722080501926,0.00825,68328.0,68327.0,1.166135]
[1722080504708,0.03121622,68328.0,68327.0,1.166135]
[1722080506951,0.00825,68328.0,68327.0,1.166135]
[1722080508282,0.00825,68328.0,68327.0,1.244935]
[1722080510208,0.03121605,68328.0,68327.0,1.244935]
[1722080517046,0.00825,68328.0,68327.0,1.244935]
[1722080517675,0.00825,68328.0,68327.0,1.36654294]
[1722080520325,0.03121602,68328.0,68327.0,1.28774294]
[1722080520527,0.10544103,68328.0,68327.0,0.174355]
[1722080520724,0.19036268,68328.0,68327.0,0.174355]
[1722080520928,0.1903627,68328.0,68327.0,0.174355]
[1722080521128,0.18124103,68328.0,68327.0,0.174355]
[1722080521329,0.16931602,68328.0,68327.0,0.745775]
[1722080521552,0.08252838,68328.0,68327.0,0.745775]
[1722080521766,0.08252838,68328.0,68327.0,0.731775]
[1722080521972,0.08252838,68328.0,68327.0,0.439065]
[1722080522195,0.08252838,68328.0,68327.0,0.445065]
[1722080522395,0.08252838,68328.0,68327.0,0.443065]
[1722080522827,0.08252838,68328.0,68327.0,0.451065]
[1722080523649,0.08252838,68328.0,68327.0,0.447065]
[1722080524044,0.08252838,68328.0,68327.0,0.453065]
[1722080524455,0.14635,68328.0,68327.0,0.160355]
[1722080524653,0.14635,68328.0,68327.0,0.014]
[1722080524853,0.15833756,68328.0,68327.0,0.014]
[1722080525089,0.19042712,68328.0,68327.0,0.014]
[1722080525225,0.18130526,68328.0,68327.0,0.014]
[1722080527888,0.1693177,68328.0,68327.0,0.014]
[1722080528109,0.18131752,68328.0,68327.0,0.014]
[1722080528701,0.32766952,68328.0,68327.0,0.014]
[1722080529069,0.62037452,68328.0,68327.0,0.014]
[1722080529419,0.62949661,68328.0,68327.0,0.014]
[1722080531248,1.20290692,68328.0,68327.0,0.014]
[1722080531444,1.21493444,68328.0,68327.0,0.014]
[1722080531809,1.26493444,68328.0,68327.0,0.014]
[1722080532340,1.24196674,68328.0,68327.0,0.014]
[1722080532674,1.34196674,68328.0,68327.0,0.006]
[1722080532880,0.73185,68320.0,68319.0,0.000924]
[1722080533062,0.90049974,68320.0,68319.0,0.000924]
[1722080533423,1.19323974,68320.0,68319.0,0.000924]
[1722080534077,1.19423974,68320.0,68319.0,0.000924]
[1722080534436,1.19424155,68320.0,68319.0,0.000924]
[1722080534641,1.19431333,68320.0,68319.0,0.000924]
[1722080535285,0.90157333,68320.0,68319.0,0.000924]
[1722080535689,0.92454528,68320.0,68319.0,0.000924]
[1722080535914,0.90157333,68320.0,68319.0,0.000924]
[1722080536059,0.90157333,68320.0,68319.0,0.0024782]
[1722080536269,0.90257333,68320.0,68319.0,0.0024782]
[1722080536675,0.90257333,68320.0,68319.0,0.000924]
[1722080538046,0.90266299,68320.0,68319.0,0.000924]
[1722080539186,0.92563524,68320.0,68319.0,0.000924]
[1722080539610,0.90266299,68320.0,68319.0,0.000924]
[1722080541213,0.89047407,68320.0,68319.0,0.000924]
[1722080541406,0.90266963,68320.0,68319.0,0.000924]
[1722080542887,0.92564186,68320.0,68319.0,0.000924]
[1722080544517,0.91344629,68320.0,68319.0,0.000924]
[1722080544718,0.91656099,68320.0,68319.0,0.000924]
[1722080544973,0.92568504,68320.0,68319.0,0.000924]
[1722080545860,0.91656099,68320.0,68319.0,0.000924]
[1722080546266,0.90271276,68320.0,68319.0,0.000924]
[1722080547916,0.89047399,68320.0,68319.0,0.000924]
[1722080548122,0.90270907,68320.0,68319.0,0.000924]
[1722080549345,0.92568118,68320.0,68319.0,0.000924]
[1722080549707,0.90270907,68320.0,68319.0,0.000924]
[1722080551334,0.89047399,68320.0,68319.0,0.000924]
[1722080551668,0.9027205,68320.0,68319.0,0.000924]
[1722080552943,0.92569254,68320.0,68319.0,0.000924]
[1722080553144,0.84419254,68320.0,68319.0,0.000924]
[1722080553950,0.55145254,68320.0,68319.0,0.000924]
[1722080554209,0.5284805,68320.0,68319.0,0.000924]
[1722080554411,0.4624805,68320.0,68319.0,0.000924]
[1722080554631,0.45335651,68320.0,68319.0,0.000924]
[1722080554836,0.46247749,68320.0,68319.0,0.00233342]
[1722080555164,0.46247749,68320.0,68319.0,0.000924]
[1722080555743,0.02336749,68320.0,68319.0,0.161724]
[1722080556805,0.02336749,68320.0,68319.0,0.1632782]
[1722080557437,0.04633912,68320.0,68319.0,0.1632782]
[1722080557632,0.02336749,68320.0,68319.0,0.161724]
[1722080558038,0.01112358,68320.0,68319.0,0.161724]
[1722080558247,0.02338135,68320.0,68319.0,0.161724]
[1722080558777,0.02338135,68320.0,68319.0,0.1632782]
[1722080558923,0.02338135,68320.0,68319.0,0.161724]
[1722080559122,0.02338135,68320.0,68319.0,0.1632782]
[1722080559315,0.01112358,68320.0,68319.0,0.1632782]
[1722080559514,0.02338144,68320.0,68319.0,0.1632782]
[1722080559714,0.0356393,68320.0,68319.0,0.161724]
[1722080560569,0.0356393,68320.0,68319.0,0.077424]
[1722080560973,0.05861089,68320.0,68319.0,0.077424]
[1722080561170,0.05761089,68320.0,68319.0,0.0789782]
[1722080561400,0.04535303,68320.0,68319.0,0.077424]
[1722080561597,0.04619303,68320.0,68319.0,0.0819782]
[1722080561772,0.04519303,68320.0,68319.0,0.080424]
[1722080561978,0.05739669,68320.0,68319.0,0.080424]
[1722080562286,0.0344251,68320.0,68319.0,0.082424]
[1722080563598,0.0344251,68320.0,68319.0,0.005924]
[1722080564056,0.0344251,68320.0,68319.0,0.0074782]
[1722080564057,0.02216724,68320.0,68319.0,0.0074782]
[1722080565154,0.02216314,68320.0,68319.0,0.0074782]
[1722080565526,0.04513473,68320.0,68319.0,0.0074782]
[1722080565927,0.04513473,68320.0,68319.0,0.005924]
[1722080566128,0.02216314,68320.0,68319.0,0.005924]
[1722080567350,0.16853314,68320.0,68319.0,0.005924]
[1722080567549,0.23473314,68320.0,68319.0,0.005924]
[1722080568224,0.22253367,68320.0,68319.0,0.005924]
[1722080568753,0.23474416,68320.0,68319.0,0.005924]
[1722080568873,0.19151575,68320.0,68319.0,0.005924]
[1722080570046,0.16854416,68320.0,68319.0,0.005924]
[1722080571541,0.15942049,68320.0,68319.0,0.0074782]
[1722080571750,0.15942049,68320.0,68319.0,0.005924]
[1722080571751,0.16854977,68320.0,68319.0,0.005924]
[1722080573406,0.04515136,68320.0,68319.0,0.005924]
[1722080573599,0.02217977,68320.0,68319.0,0.087124]
[1722080574202,0.02217977,68320.0,68319.0,0.08852634]
[1722080574402,0.02217977,68320.0,68319.0,0.087124]
[1722080574604,0.02217977,68320.0,68319.0,0.233496]
[1722080575038,0.02217977,68320.0,68319.0,1.174228]
[1722080575246,0.02220399,68320.0,68319.0,1.174228]
[1722080575511,0.01308032,68320.0,68319.0,1.174228]
[1722080577221,0.03605058,68320.0,68319.0,1.174228]
[1722080578205,0.00084,68320.0,68319.0,1.174228]
[1722080578436,0.01301886,68320.0,68319.0,1.174228]
[1722080581526,0.03598912,68320.0,68319.0,1.174228]
[1722080581759,0.01301886,68320.0,68319.0,1.174228]
[1722080582749,0.01301886,68320.0,68319.0,0.881484]
[1722080583556,0.08834194,68320.0,68319.0,0.005924]
[1722080584816,0.07921886,68320.0,68319.0,0.005924]
[1722080585050,0.08836714,68320.0,68319.0,0.005924]
[1722080586179,0.11133749,68320.0,68319.0,0.005924]
[1722080586529,0.08836714,68320.0,68319.0,0.005924]
[1722080588198,0.07924384,68320.0,68319.0,0.005924]
[1722080588400,0.0761633,68320.0,68319.0,0.005924]
[1722080588596,0.08836626,68320.0,68319.0,0.005924]
[1722080589244,0.1113372,68320.0,68319.0,0.005924]
[1722080589608,0.08836626,68320.0,68319.0,0.005924]
[1722080590732,1.04675626,68320.0,68319.0,0.005924]
[1722080590930,0.90021626,68320.0,68319.0,0.005924]
[1722080591314,0.89109296,68320.0,68319.0,0.005924]
[1722080591852,0.87889,68320.0,68319.0,0.003924]
[1722080592033,0.87889,68320.0,68319.0,0.000924]
[1722080592034,0.8910717,68320.0,68319.0,0.000924]
[1722080592377,0.8940717,68320.0,68319.0,0.000924]
[1722080594138,0.91704321,68320.0,68319.0,0.000924]
[1722080594978,0.90486151,68320.0,68319.0,0.000924]
[1722080595331,0.91705308,68320.0,68319.0,0.000924]
[1722080596841,0.77085308,68320.0,68319.0,0.000924]
[1722080597963,0.74788157,68320.0,68319.0,0.000924]
[1722080598438,0.73569,68320.0,68319.0,0.000924]
[1722080598578,0.74788724,68320.0,68319.0,0.000924]
[1722080601097,0.77085934,68320.0,68319.0,0.000924]
[1722080601295,0.45514724,68320.0,68319.0,0.000924]
[1722080601506,0.45514724,68320.0,68319.0,0.082324]
[1722080601702,0.16240724,68320.0,68319.0,0.082324]
[1722080601902,0.44295,68320.0,68319.0,0.146624]
[1722080602115,0.45511049,68320.0,68319.0,0.146624]
[1722080604781,0.4780823,68320.0,68319.0,0.146624]
[1722080606959,0.45511049,68320.0,68319.0,0.146624]
[1722080608526,0.44295,68320.0,68319.0,0.146624]
[1722080608731,0.45510355,68320.0,68319.0,0.146624]
[1722080609336,0.16236355,68320.0,68319.0,0.146624]
[1722080609915,0.45510355,68320.0,68319.0,0.146624]
[1722080610118,0.16236355,68320.0,68319.0,0.082324]
[1722080610249,0.18533528,68320.0,68319.0,0.082324]
[1722080610454,0.47807528,68320.0,68319.0,0.082324]
[1722080611062,0.45510355,68320.0,68319.0,0.082324]
[1722080611990,0.44295,68320.0,68319.0,0.082324]
[1722080612210,0.45505095,68320.0,68319.0,0.082324]
[1722080613622,0.16231095,68320.0,68319.0,0.082324]
[1722080613828,0.18528259,68320.0,68319.0,0.082324]
[1722080614346,0.47802259,68320.0,68319.0,0.082324]
[1722080615667,0.18528974,68320.0,68319.0,0.082324]
[1722080616324,0.03891974,68320.0,68319.0,0.082324]
[1722080617221,0.03891974,68320.0,68319.0,0.0838782]
[1722080617456,0.03891974,68320.0,68319.0,0.082324]
[1722080617987,0.18528974,68320.0,68319.0,0.082324]
[1722080618775,0.17318164,68320.0,68319.0,0.082324]
[1722080619020,0.03890886,68320.0,68319.0,0.312996]
[1722080619216,0.03890886,68320.0,68319.0,0.66664]
[1722080619437,0.02681164,68320.0,68319.0,0.289596]
[1722080619641,0.02681164,68320.0,68319.0,0.6681942]
[1722080619799,0.03890642,68320.0,68319.0,0.6681942]
[1722080620008,0.03890642,68320.0,68319.0,0.66664]
[1722080620602,0.01593478,68320.0,68319.0,0.66664]
[1722080621643,0.01593478,68320.0,68319.0,0.289596]
[1722080621843,0.01593478,68320.0,68319.0,0.3754502]
[1722080622084,0.00384,68320.0,68319.0,0.373896]
[1722080622489,0.01589671,68320.0,68319.0,0.373896]
[1722080623045,0.01589671,68320.0,68319.0,0.227524]
[1722080623270,0.01589674,68320.0,68319.0,0.227524]
[1722080623689,0.01589674,68320.0,68319.0,0.0838782]
[1722080623890,0.03886811,68320.0,68319.0,0.0838782]
[1722080624071,0.03886811,68320.0,68319.0,0.082324]
[1722080625139,0.18523811,68320.0,68319.0,0.082324]
[1722080625388,0.16226674,68320.0,68319.0,0.082324]
[1722080625600,0.15021,68320.0,68319.0,0.082324]
[1722080625759,0.16227095,68320.0,68319.0,0.082324]
[1722080626772,0.15021,68320.0,68319.0,0.082324]
[1722080627260,0.16227099,68320.0,68319.0,0.082324]
[1722080627443,0.03887253,68320.0,68319.0,0.082324]
[1722080628305,0.18524253,68320.0,68319.0,0.082324]
[1722080628933,0.17318154,68320.0,68319.0,0.082324]
[1722080629144,0.16229388,68320.0,68319.0,0.082324]
[1722080629615,0.15021,68320.0,68319.0,0.082324]
[1722080629823,0.16229388,68320.0,68319.0,0.082324]
[1722080630027,0.15021,68320.0,68319.0,0.082324]
[1722080630241,0.1622931,68320.0,68319.0,0.082324]
[1722080631870,0.0159231,68320.0,68319.0,0.082324]
[1722080632188,0.0159231,68320.0,68319.0,0.292996]
[1722080632387,0.00384,68320.0,68319.0,0.292996]
[1722080632630,0.03889743,68320.0,68319.0,0.230924]
[1722080632839,0.01592591,68320.0,68319.0,0.377296]
[1722080633818,0.01592591,68320.0,68319.0,0.230924]
[1722080634162,0.01592591,68320.0,68319.0,0.2324782]
[1722080634824,0.01592591,68320.0,68319.0,0.230924]
[1722080635334,0.01592591,68320.0,68319.0,0.377296]
[1722080635850,0.02681143,68320.0,68319.0,0.377296]
[1722080635992,0.03892372,68320.0,68319.0,0.377296]
[1722080636821,0.01595229,68320.0,68319.0,0.377296]
[1722080637422,0.01595229,68320.0,68319.0,0.230924]
[1722080637876,0.16232229,68320.0,68319.0,0.000924]
[1722080638024,0.45506229,68320.0,68319.0,0.000924]
[1722080638232,0.74780229,68320.0,68319.0,0.000924]
[1722080638662,0.74780229,68320.0,68319.0,0.0024782]
[1722080639106,0.74780229,68320.0,68319.0,0.000924]
[1722080639227,0.73569,68320.0,68319.0,0.000924]
[1722080639431,0.74782207,68320.0,68319.0,0.000924]
[1722080639633,0.75995414,68320.0,68319.0,0.000924]
[1722080639855,0.78292619,68320.0,68319.0,0.0024782]
[1722080640071,0.75995414,68320.0,68319.0,0.0024782]
[1722080640270,0.90165414,68320.0,68319.0,0.0024782]
[1722080640645,0.90165414,68320.0,68319.0,0.000924]
[1722080641199,0.90165414,68320.0,68319.0,0.0024782]
[1722080641905,0.90165414,68320.0,68319.0,0.000924]
[1722080642639,0.88952207,68320.0,68319.0,0.000924]
[1722080642843,0.90167227,68320.0,68319.0,0.000924]
[1722080643042,0.82027227,68320.0,68319.0,0.000924]
[1722080643390,0.84324429,68320.0,68319.0,0.000924]
[1722080643808,0.82027227,68320.0,68319.0,0.000924]
[1722080644024,0.82027227,68320.0,68319.0,0.0024782]
[1722080644212,0.75997227,68320.0,68319.0,0.0833782]
[1722080644609,0.75997227,68320.0,68319.0,0.081824]
[1722080645896,0.86815755,68320.0,68319.0,0.081824]
[1722080646249,0.88033054,68320.0,68319.0,0.081824]
[1722080646452,0.86819847,68320.0,68319.0,0.081824]
[1722080647041,0.89117045,68320.0,68319.0,0.081824]
[1722080648038,0.89117045,68320.0,68319.0,0.0833782]
[1722080648448,0.89117045,68320.0,68319.0,0.081824]
[1722080649256,0.75866198,68320.0,68319.0,0.081824]
[1722080649502,0.77083602,68320.0,68319.0,0.081824]
[1722080650058,0.74786404,68320.0,68319.0,0.081824]
[1722080652818,0.73569,68320.0,68319.0,0.081824]
[1722080653019,0.74786616,68320.0,68319.0,0.081824]
[1722080653374,0.77083814,68320.0,68319.0,0.081824]
[1722080653573,0.89226021,68320.0,68319.0,0.081824]
[1722080653836,0.86928823,68320.0,68319.0,0.081824]
[1722080654163,0.74786616,68320.0,68319.0,0.081824]
[1722080656135,0.44295,68320.0,68319.0,0.081824]
[1722080656661,0.45512469,68320.0,68319.0,0.081824]
[1722080657066,0.47809667,68320.0,68319.0,0.081824]
[1722080658281,0.03898667,68320.0,68319.0,0.143924]
[1722080658500,0.18535667,68320.0,68319.0,0.143924]
[1722080658654,0.47809667,68320.0,68319.0,0.143924]
[1722080659281,0.18535667,68320.0,68319.0,0.143924]
[1722080659659,0.18535587,68320.0,68319.0,0.143924]
[1722080661299,0.16238389,68320.0,68319.0,0.143924]
[1722080662055,0.16238389,68320.0,68319.0,0.081824]
[1722080662056,0.45512389,68320.0,68319.0,0.081824]
[1722080662813,0.45512389,68320.0,68319.0,0.000924]
[1722080662814,1.25036529,68320.0,68319.0,0.000924]
[1722080662988,1.16953,68320.0,68319.0,0.000924]
[1722080663193,1.23169941,68320.0,68319.0,0.000924]
[1722080664652,1.25467143,68320.0,68319.0,0.000924]
[1722080665014,1.23169941,68320.0,68319.0,0.000924]
[1722080665219,1.25467147,68320.0,68319.0,0.000924]
[1722080665421,1.25467147,68320.0,68319.0,0.0024782]
[1722080665650,1.23169941,68320.0,68319.0,0.0024782]
[1722080665857,1.23169941,68320.0,68319.0,0.000924]
[1722080666552,1.23173891,68320.0,68319.0,0.000924]
[1722080668234,1.25471097,68320.0,68319.0,0.000924]
[1722080668817,1.27800998,68320.0,68319.0,0.0024782]
[1722080669454,1.24250206,68320.0,68319.0,0.0024782]
[1722080669656,1.24250206,68320.0,68319.0,0.000924]
[1722080669657,1.19250206,68320.0,68319.0,0.000924]
[1722080669860,1.27831771,68320.0,68319.0,0.000924]
[1722080670095,1.27831771,68320.0,68319.0,0.0024782]
[1722080670499,1.27831771,68320.0,68319.0,0.000924]
[1722080670681,1.25472592,68320.0,68319.0,0.000924]
[1722080670886,1.27829894,68320.0,68319.0,0.0024782]
[1722080671311,1.287034,68320.0,68319.0,0.000924]
[1722080671489,1.287034,68320.0,68319.0,0.0024782]
[1722080672055,1.287034,68320.0,68319.0,0.000924]
[1722080672222,1.237034,68320.0,68319.0,0.000924]
[1722080672408,1.156434,68320.0,68319.0,0.000924]
[1722080673003,1.15647378,68320.0,68319.0,0.000924]
[1722080673203,1.04065386,68320.0,68319.0,0.0785782]
[1722080673794,1.04065386,68320.0,68319.0,0.077024]
[1722080675072,0.74791386,68320.0,68319.0,0.077024]
[1722080677953,0.77088609,68320.0,68319.0,0.077024]
[1722080679667,0.75866223,68320.0,68319.0,0.077024]